bitfinex-derivatives/quotes_ETHF0:USTF0_20250428
["timestamp","ask_amount","ask_price","bid_price","bid_amount"]
[1745830649262,5.9721,1810.1,1810.0,1.10461]
[1745830649563,7.07665,1810.1,1810.0,1.10461]
[1745830649864,5.9721,1810.1,1810.0,1.10461]
[1745830653564,7.07665,1810.1,1810.0,1.10461]
[1745830654062,5.9721,1810.1,1810.0,1.10461]
[1745830655059,9.7741,1810.1,1810.0,1.10461]
[1745830656167,5.9721,1810.1,1810.0,1.10461]
[1745830659563,0.8618,1810.3,1810.2,1.10449]
[1745830659762,0.8618,1810.3,1810.2,4.31229]
[1745830660267,2.5111,1810.4,1810.3,1.10443]
[1745830660465,3.554,1810.5,1810.4,1.10437]
[1745830660663,6.0651,1810.5,1810.4,1.10437]
[1745830661059,9.8671,1810.5,1810.4,1.10437]
[1745830661767,6.3131,1810.5,1810.4,41.90437]
[1745830661966,3.802,1810.5,1810.4,45.91727]
[1745830662164,0.8375,1810.6,1810.5,1.10431]
[1745830662358,0.8375,1810.6,1810.5,2.75111]
[1745830664964,2.5757,1810.6,1810.5,2.75111]
[1745830666375,2.5757,1810.6,1810.5,3.59051]
[1745830671280,2.5757,1810.6,1810.5,2.75111]
[1745830672182,6.3777,1810.6,1810.5,2.75111]
[1745830675183,2.5757,1810.6,1810.5,2.75111]
[1745830677174,7.48195,1810.6,1810.5,41.90431]
[1745830682185,7.48195,1810.6,1810.5,1.10431]
[1745830690491,3.802,1810.6,1810.5,1.10431]
[1745830690792,4.90625,1810.6,1810.5,2.73461]
[1745830690990,3.802,1810.6,1810.5,4.31811]
[1745830691290,1.10423,1810.7,1810.6,1.10425]
[1745830691590,1.10423,1810.7,1810.6,2.68775]
[1745830691993,7.92407,1810.8,1810.6,43.48769]
[1745830692193,1.5903,1810.7,1810.6,43.48769]
[1745830692490,2.69449,1810.7,1810.6,43.48769]
[1745830692796,2.69449,1810.7,1810.6,41.90419]
[1745830693282,6.49649,1810.7,1810.6,41.90419]
[1745830693996,6.49649,1810.7,1810.6,43.64259]
[1745830694593,5.3923,1810.7,1810.6,43.64259]
[1745830695291,6.49649,1810.7,1810.6,43.64259]
[1745830696497,5.3923,1810.7,1810.6,43.64259]
[1745830696793,6.49649,1810.7,1810.6,43.64259]
[1745830697993,4.90619,1810.7,1810.6,43.64259]
[1745830698388,5.5359,1810.7,1810.6,43.64259]
[1745830698895,6.64009,1810.7,1810.6,43.64259]
[1745830699195,5.5359,1810.7,1810.6,43.64259]
[1745830699591,6.64009,1810.7,1810.6,43.64259]
[1745830707812,4.90619,1810.7,1810.6,43.64259]
[1745830708014,3.802,1810.7,1810.6,43.64259]
[1745830708214,10.14717,1810.8,1810.7,1.10419]
[1745830708415,10.14717,1810.8,1810.7,3.62919]
[1745830708819,10.14717,1810.8,1810.7,44.42919]
[1745830710121,10.14717,1810.8,1810.7,43.62929]
[1745830710322,11.82507,1810.8,1810.7,43.62929]
[1745830715615,1.10419,1810.7,1810.6,1.1042]
[1745830715815,2.68799,1810.7,1810.6,1.1042]
[1745830716025,2.68799,1810.7,1810.6,41.9042]
[1745830716218,6.48999,1810.7,1810.6,43.4907]
[1745830719829,4.90619,1810.7,1810.6,43.4907]
[1745830723030,6.61289,1810.7,1810.6,43.4907]
[1745830723531,3.802,1810.7,1810.6,43.4907]
[1745830728136,5.5022,1810.7,1810.6,43.4907]
[1745830728540,6.60639,1810.7,1810.6,41.9042]
[1745830730542,5.5022,1810.7,1810.6,41.9042]
[1745830731341,6.60639,1810.7,1810.6,41.9042]
[1745830731849,6.60639,1810.7,1810.6,1.1042]
[1745830732538,5.5022,1810.7,1810.6,1.1042]
[1745830732939,5.5022,1810.7,1810.6,2.7213]
[1745830735444,6.60639,1810.7,1810.6,2.7213]
[1745830741157,6.60639,1810.7,1810.6,1.1042]
[1745830742952,1.10425,1810.6,1810.5,2.7835]
[1745830743255,3.67095,1810.6,1810.5,1.1043]
[1745830743461,7.22095,1810.6,1810.5,1.1043]
[1745830744054,11.02295,1810.6,1810.5,1.1043]
[1745830745270,1.10431,1810.5,1810.4,2.69612]
[1745830745558,3.47751,1810.5,1810.4,1.5918]
[1745830745761,1.10437,1810.4,1810.3,0.7977]
[1745830745959,3.50377,1810.4,1810.3,1.90213]
[1745830746158,7.30577,1810.4,1810.3,1.90213]
[1745830746962,7.30577,1810.4,1810.3,3.49393]
[1745830748567,7.30577,1810.4,1810.3,1.10443]
[1745830749070,1.10443,1810.3,1810.2,43.51448]
[1745830749262,2.84223,1810.3,1810.2,43.51448]
[1745830749463,2.84223,1810.3,1810.2,2.71448]
[1745830749861,5.7256,1810.4,1810.3,1.10443]
[1745830750166,5.7256,1810.4,1810.3,2.71443]
[1745830751070,3.802,1810.4,1810.3,2.71443]
[1745830751269,4.90637,1810.4,1810.3,2.71443]
[1745830751471,4.90637,1810.4,1810.3,1.61]
[1745830751670,7.46517,1810.4,1810.3,1.61]
[1745830751866,7.46517,1810.4,1810.3,2.71443]
[1745830752260,6.3608,1810.4,1810.2,4.0397]
[1745830752564,2.81393,1810.3,1810.2,5.88274]
[1745830753070,6.61593,1810.3,1810.2,5.88274]
[1745830753272,1.10467,1809.9,1809.8,4.31247]
[1745830753971,3.60057,1809.9,1809.8,41.90474]
[1745830754168,7.40257,1809.9,1809.8,41.90474]
[1745830754871,7.40257,1809.9,1809.8,43.54374]
[1745830755969,6.2979,1809.9,1809.8,43.54374]
[1745830756170,7.40257,1809.9,1809.8,43.54374]
[1745830756879,6.2979,1809.9,1809.8,43.54374]
[1745830759867,7.40257,1809.9,1809.8,43.54374]
[1745830762968,6.2979,1809.9,1809.8,43.54374]
[1745830763164,7.40257,1809.9,1809.8,43.54374]
[1745830766875,7.40257,1809.9,1809.8,2.74374]
[1745830770980,7.40257,1809.9,1809.8,43.54374]
[1745830771671,8.20217,1809.9,1809.8,43.54374]
[1745830773483,7.40257,1809.9,1809.8,43.54374]
[1745830776276,4.90667,1809.9,1809.8,43.54374]
[1745830776482,1.10456,1810.2,1810.1,1.10449]
[1745830776685,1.19503367,1810.2,1810.1,1.10449]
[1745830776981,3.62556,1810.2,1810.1,1.10449]
[1745830777286,7.42756,1810.2,1810.1,1.10449]
[1745830777486,7.42756,1810.2,1810.1,2.78369]
[1745830777783,7.51803569,1810.2,1810.1,2.78369]
[1745830778085,7.42756,1810.2,1810.1,2.78369]
[1745830778785,7.51803527,1810.2,1810.1,2.78369]
[1745830779080,7.42756,1810.2,1810.1,2.78369]
[1745830782088,7.51803549,1810.2,1810.1,2.78369]
[1745830783189,7.42756,1810.2,1810.1,2.78369]
[1745830783382,7.51803558,1810.2,1810.1,2.78369]
[1745830784188,7.42756,1810.2,1810.1,3.63589]
[1745830786584,7.42756,1810.2,1810.1,44.43589]
[1745830787285,7.42756,1810.2,1810.1,3.63589]
[1745830787789,7.42756,1810.2,1810.1,44.43589]
[1745830789795,7.42756,1810.2,1810.1,3.63589]
[1745830790392,7.42756,1810.2,1810.1,44.43589]
[1745830790594,3.802,1810.2,1810.1,44.43589]
[1745830794791,3.19399756,1810.2,1810.1,44.43589]
[1745830795093,25.29327252,1810.6,1810.5,1.10431]
[1745830795284,26.39753252,1810.6,1810.5,1.10431]
[1745830795888,26.39753252,1810.6,1810.5,2.76071]
[1745830795889,23.99242252,1810.6,1810.5,2.76071]
[1745830796091,27.79442252,1810.6,1810.5,2.76071]
[1745830798705,30.34382252,1810.6,1810.5,2.76071]
[1745830801217,7.351,1810.6,1810.5,2.76071]
[1745830801692,9.8454,1810.6,1810.5,2.76071]
[1745830802699,2.58893,1810.6,1810.5,10.96851]
[1745830802901,3.549,1811.0,1810.9,1.10406]
[1745830803096,3.549,1811.0,1810.9,4.31186]
[1745830803397,3.549,1811.0,1810.9,45.11186]
[1745830803803,3.549,1811.2,1811.1,1.10394]
[1745830804301,3.802,1811.2,1811.1,4.31174]
[1745830804494,3.802,1811.2,1811.1,5.95094]
[1745830805191,18.47337252,1811.3,1811.2,1.10388]
[1745830805397,18.47337252,1811.3,1811.2,2.70528]
[1745830805894,18.47337252,1811.3,1811.2,7.70528]
[1745830806093,17.27724252,1811.3,1811.2,7.70528]
[1745830806295,16.01493252,1811.3,1811.2,11.50728]
[1745830807299,13.30240252,1811.3,1811.2,11.50728]
[1745830807499,10.12398252,1811.3,1811.2,11.50728]
[1745830807704,8.66493252,1811.3,1811.2,11.50728]
[1745830808006,7.51913252,1811.3,1811.2,11.50728]
[1745830808202,1.6023,1811.9,1811.8,1.10352]
[1745830808401,2.70576,1811.9,1811.8,1.10352]
[1745830808604,1.6023,1811.9,1811.8,1.10352]
[1745830808794,1.6023,1811.9,1811.7,1.6248]
[1745830809107,6.50777,1811.9,1811.8,1.10352]
[1745830809405,6.50777,1811.9,1811.7,1.10354]
[1745830809701,1.7292,1811.8,1811.7,1.10354]
[1745830810304,5.5312,1811.8,1811.7,1.10354]
[1745830811012,5.5312,1811.8,1811.6,4.8193]
[1745830811209,1.7292,1811.7,1811.6,5.92291]
[1745830811510,2.83282,1811.7,1811.5,1.10365]
[1745830811712,0.8382,1811.6,1811.5,1.10365]
[1745830812009,2.5674,1811.6,1811.5,1.10365]
[1745830812211,3.546,1811.7,1811.6,1.10364]
[1745830812398,7.16528,1811.7,1811.6,1.10364]
[1745830812595,7.16528,1811.7,1811.5,2.76445]
[1745830812801,1.6775,1811.6,1811.5,2.76445]
[1745830813204,5.4795,1811.6,1811.5,2.76445]
[1745830814306,3.802,1811.6,1811.5,2.76445]
[1745830814504,3.802,1811.6,1811.5,3.62295]
[1745830814909,5.4795,1811.6,1811.5,3.62295]
[1745830815114,6.58314,1811.6,1811.5,2.76445]
[1745830815311,7.37754,1811.6,1811.5,1.10365]
[1745830815606,6.2739,1811.6,1811.5,1.10365]
[1745830816612,3.802,1811.6,1811.5,2.78335]
[1745830817112,3.802,1811.6,1811.5,7.78335]
[1745830817299,1.7163,1811.9,1811.8,1.10352]
[1745830818506,1.7163,1811.9,1811.8,2.74192]
[1745830819205,5.5183,1811.9,1811.8,2.74192]
[1745830821411,6.62176,1811.9,1811.8,2.74192]
[1745830826211,5.5183,1811.9,1811.8,2.74192]
[1745830827305,3.802,1811.9,1811.8,2.74192]
[1745830827611,3.802,1811.9,1811.8,7.74192]
[1745830828107,1.10323,1812.3,1812.2,1.10321]
[1745830828316,2.76903,1812.3,1812.2,1.10321]
[1745830828613,1.10339,1812.1,1812.0,1.10337]
[1745830829108,1.10339,1812.0,1811.9,4.31122]
[1745830829308,1.96979,1812.0,1811.9,4.31122]
[1745830829509,3.63559,1812.0,1811.9,4.31122]
[1745830830213,1.10346,1811.9,1811.8,41.90352]
[1745830830505,1.6658,1811.9,1811.8,41.90352]
[1745830830699,1.6658,1811.9,1811.8,43.49752]
[1745830831116,5.4678,1811.9,1811.8,43.49752]
[1745830831413,3.802,1811.9,1811.8,43.49752]
[1745830832206,5.4446,1811.9,1811.8,43.49752]
[1745830832606,6.54806,1811.9,1811.8,43.49752]
[1745830833110,6.54806,1811.9,1811.8,40.8]
[1745830833614,1.10352,1811.8,1811.7,4.122]
[1745830833818,3.75190827,1811.8,1811.7,4.122]
[1745830834108,1.10367,1811.6,1811.5,1.1037]
[1745830834316,1.6997,1811.7,1811.6,1.10358]
[1745830834514,6.34728,1811.7,1811.6,1.10358]
[1745830834710,1.6997,1811.7,1811.6,4.31138]
[1745830835108,4.6603,1811.8,1811.6,4.31138]
[1745830835109,8.2043,1811.8,1811.7,1.10358]
[1745830835312,4.4023,1811.8,1811.7,2.80168]
[1745830835514,0.8664,1812.0,1811.7,1.6981]
[1745830835707,2.5661,1812.0,1811.9,1.10346]
[1745830836215,6.3681,1812.0,1811.9,1.10346]
[1745830836713,6.3681,1812.0,1811.9,2.68776]
[1745830837717,4.6684,1812.0,1811.9,2.68776]
[1745830838617,6.274,1812.0,1811.9,2.68776]
[1745830839217,3.802,1812.0,1811.9,2.68776]
[1745830840117,3.544,1812.1,1812.0,1.10339]
[1745830840321,3.544,1812.1,1812.0,2.70749]
[1745830840817,4.64733,1812.1,1812.0,1.10339]
[1745830841012,1.10343,1812.0,1811.9,1.10339]
[1745830841213,6.55173,1812.0,1811.9,1.10339]
[1745830841415,3.802,1812.0,1811.9,1.10339]
[1745830841613,3.802,1812.0,1811.9,2.70749]
[1745830841814,5.4483,1812.0,1811.9,2.70749]
[1745830842214,1.10346,1811.9,1811.8,8.43346]
[1745830842412,5.95756,1811.9,1811.8,4.1222]
[1745830842616,5.95756,1811.9,1811.8,1.10352]
[1745830843111,9.75956,1811.9,1811.8,1.10352]
[1745830845719,9.8499434,1811.9,1811.8,1.10352]
[1745830846422,9.84994341,1811.9,1811.8,1.10352]
[1745830846920,1.10352,1811.8,1811.7,4.1225]
[1745830847124,4.385512,1811.8,1811.7,5.22608]
[1745830847422,7.929512,1811.8,1811.7,2.253]
[1745830847624,7.929512,1811.8,1811.7,3.35658]
[1745830847822,7.929512,1811.8,1811.7,2.253]
[1745830848127,11.731512,1811.8,1811.7,1.9723]
[1745830848625,11.731512,1811.8,1811.7,1.5748]
[1745830848923,11.731512,1811.8,1811.7,0.0582]
[1745830849125,1.10358,1811.7,1811.6,1.10359]
[1745830849311,2.844772,1811.7,1811.6,1.10359]
[1745830849623,2.75438,1811.7,1811.6,1.10359]
[1745830850423,6.55638,1811.7,1811.6,1.10359]
[1745830851116,5.4528,1811.7,1811.6,1.10359]
[1745830851724,5.4528,1811.7,1811.6,2.74799]
[1745830851923,6.55638,1811.7,1811.6,2.74799]
[1745830852423,6.55638,1811.7,1811.6,1.10359]
[1745830852817,1.10364,1811.6,1811.5,6.87428]
[1745830853016,2.72934,1811.6,1811.5,5.22668]
[1745830853217,6.53134,1811.6,1811.5,3.35698]
[1745830854625,6.53134,1811.6,1811.5,3.07628]
[1745830854825,6.53134,1811.6,1811.5,1.55948]
[1745830855126,6.53134,1811.6,1811.5,1.16188]
[1745830855627,4.90564,1811.6,1811.5,1.10368]
[1745830856020,4.90983905,1811.6,1811.5,1.10368]
[1745830856826,4.90983905,1811.6,1811.5,2.83598]
[1745830859822,3.80619905,1811.6,1811.5,2.83598]
[1745830860626,3.80619905,1811.6,1811.5,3.66948]
[1745830860832,3.80619905,1811.6,1811.5,6.87728]
[1745830861329,3.80619905,1811.6,1811.5,11.87728]
[1745830861534,4.43129,1812.2,1811.9,1.10346]
[1745830861722,7.97529,1812.2,1812.1,1.10333]
[1745830862233,11.77729,1812.2,1812.1,1.10333]
[1745830864533,11.77729,1812.2,1812.1,2.82723]
[1745830865031,3.802,1812.2,1812.1,2.82723]
[1745830867237,1.5936,1812.4,1812.3,1.10321]
[1745830867536,1.5936,1812.4,1812.3,41.90321]
[1745830868026,3.331,1812.4,1812.3,43.54561]
[1745830868232,7.133,1812.4,1812.3,43.54561]
[1745830870145,8.23615,1812.4,1812.3,40.8]
[1745830870445,8.23615,1812.4,1812.3,41.90321]
[1745830870641,8.3264999,1812.4,1812.3,41.90321]
[1745830873340,7.133,1812.4,1812.3,41.90321]
[1745830873840,7.133,1812.4,1812.3,43.64191]
[1745830878052,8.23615,1812.4,1812.3,43.64191]
[1745830879752,7.133,1812.4,1812.3,43.64191]
[1745830880352,1.10256,1813.4,1813.0,2.75691]
[1745830880652,3.57903,1813.5,1813.4,1.10254]
[1745830880842,2.05362178,1813.5,1813.4,1.10254]
[1745830881045,0.09029178,1813.5,1813.4,4.31034]
[1745830881246,3.802,1813.5,1813.3,1.6837]
[1745830881448,3.802,1813.5,1813.3,2.78627]
[1745830881657,4.90448,1813.5,1813.4,3.2078]
[1745830881844,3.802,1813.5,1813.4,45.11034]
[1745830882353,3.802,1813.5,1813.4,50.11034]
[1745830882651,3.802,1813.5,1813.4,48.65234]
[1745830882952,3.802,1813.5,1813.4,53.65234]
[1745830883152,1.10224,1813.9,1813.8,1.10227]
[1745830883343,4.0773,1814.1,1813.7,3.2078]
[1745830883545,1.1023,1813.8,1813.7,3.2078]
[1745830883738,1.10242,1813.6,1813.5,3.2078]
[1745830883947,1.10247,1813.6,1813.4,40.8]
[1745830884151,3.802,1813.6,1813.5,1.10248]
[1745830884355,4.90442,1813.6,1813.5,4.31028]
[1745830884647,1.10248,1813.5,1813.4,40.8]
[1745830884952,4.6079,1813.6,1813.5,1.10248]
[1745830885542,3.802,1813.6,1813.5,1.10248]
[1745830885741,3.802,1813.6,1813.5,2.72258]
[1745830885742,4.90442,1813.6,1813.5,2.72258]
[1745830886149,1.10248,1813.5,1813.4,40.8]
[1745830886350,1.10254,1813.4,1813.3,5.9061]
[1745830886557,1.10254,1813.4,1813.3,7.0087]
[1745830886848,2.75624,1813.5,1813.1,40.8]
[1745830887049,1.10279,1813.0,1812.9,1.10281]
[1745830887257,1.10285,1812.9,1812.8,3.2078]
[1745830887452,1.10283,1813.0,1812.9,1.10283]
[1745830887855,1.10285,1812.9,1812.8,45.11068]
[1745830888042,1.10285,1812.9,1812.8,41.90288]
[1745830888247,0.7988,1813.1,1812.8,44.0078]
[1745830888551,1.10279,1813.0,1812.8,44.0078]
[1745830888751,1.10279,1813.0,1812.9,1.10284]
[1745830889246,4.90479,1813.0,1812.9,1.10284]
[1745830889447,4.90479,1813.0,1812.9,2.97084]
[1745830889752,3.802,1813.0,1812.9,2.97084]
[1745830890149,3.802,1813.0,1812.9,4.55374]
[1745830890646,4.90479,1813.0,1812.9,1.868]
[1745830890850,4.99511165,1813.0,1812.9,1.868]
[1745830891152,4.99511165,1813.0,1812.9,2.2655]
[1745830891846,4.99511165,1813.0,1812.9,3.36835]
[1745830892053,3.802,1813.0,1812.9,10.08605]
[1745830893252,3.58811,1813.5,1813.3,1.1026]
[1745830893253,1.10258,1813.4,1813.3,1.1026]
[1745830893553,1.10262,1813.3,1813.2,1.10261]
[1745830893748,0.8319,1813.5,1813.2,1.7177]
[1745830893939,1.10273,1813.1,1813.0,1.10277]
[1745830894149,1.1027,1813.2,1813.1,1.1027]
[1745830894550,1.10258,1813.4,1813.3,1.10257]
[1745830894750,4.6339,1813.5,1813.4,1.10254]
[1745830895053,3.802,1813.5,1813.4,2.72014]
[1745830896247,4.90435,1813.8,1813.7,1.10236]
[1745830896451,1.10236,1813.7,1813.6,4.31017]
[1745830896650,1.10236,1813.7,1813.6,5.92777]
[1745830897055,1.10236,1813.7,1813.6,4.8254]
[1745830897247,6.50486,1813.7,1813.6,4.31022]
[1745830897557,6.50486,1813.7,1813.6,3.2078]
[1745830897755,6.50486,1813.7,1813.6,4.31022]
[1745830898753,6.50486,1813.7,1813.6,0.2803]
[1745830899156,6.5951437,1813.7,1813.6,0.2803]
[1745830899856,1.1026,1813.4,1813.3,1.10259]
[1745830900062,1.10266,1813.2,1813.1,5.848]
[1745830900260,1.7073,1813.3,1813.0,3.2078]
[1745830900453,1.10279,1813.0,1812.9,3.9217]
[1745830900758,1.10279,1813.0,1812.9,2.2655]
[1745830901151,4.90479,1813.0,1812.9,2.2655]
[1745830901552,4.90479,1813.0,1812.9,4.88485]
[1745830901959,6.54909,1813.0,1812.9,4.88485]
[1745830903460,5.4463,1813.0,1812.9,4.88485]
[1745830903760,3.802,1813.0,1812.9,6.52955]
[1745830903960,4.90479,1813.0,1812.9,6.52955]
[1745830904451,4.90479,1813.0,1812.9,4.88485]
[1745830904651,4.90479,1813.0,1812.9,3.8402]
[1745830905358,4.90479,1813.0,1812.9,4.94305]
[1745830906254,3.802,1813.0,1812.9,4.94305]
[1745830906452,3.802,1813.0,1812.9,6.65535]
[1745830906961,4.90479,1813.0,1812.9,3.8402]
[1745830907262,6.47439,1813.0,1812.9,4.94305]
[1745830907760,6.47439,1813.0,1812.9,3.8402]
[1745830907958,6.47439,1813.0,1812.9,4.94305]
[1745830908958,6.47439,1813.0,1812.9,3.8402]
[1745830909155,15.08439,1813.0,1812.9,1.9722]
[1745830909360,1.10297,1812.7,1812.6,4.31083]
[1745830910062,4.90497,1812.7,1812.6,5.90773]
[1745830911166,11.55958,1812.7,1811.7,8.60691]
[1745830911361,1.10338,1812.1,1812.0,1.10336]
[1745830911664,3.61,1812.3,1812.0,40.8]
[1745830911867,2.67261,1812.2,1812.0,41.90336]
[1745830912164,8.51521,1812.3,1812.2,1.10327]
[1745830912668,1.10327,1812.2,1812.1,2.70018]
[1745830913269,6.61127,1812.2,1812.1,1.5969]
[1745830913565,1.10333,1812.1,1812.0,41.90335]
[1745830913757,2.80933,1812.1,1812.0,40.8]
[1745830913956,2.80933,1812.1,1812.0,41.90339]
[1745830914159,6.61133,1812.1,1812.0,41.90339]
[1745830915463,6.61133,1812.1,1812.0,40.8]
[1745830915763,9.81913,1812.1,1812.0,40.8]
[1745830915964,9.90950395,1812.1,1812.0,40.8]
[1745830916460,1.10339,1812.0,1811.9,2.79016]
[1745830916660,2.79689,1812.0,1811.9,1.6867]
[1745830916868,4.45203,1812.0,1811.8,40.8]
[1745830917062,1.10346,1811.9,1811.8,40.8]
[1745830917260,2.79696,1811.9,1811.8,41.90352]
[1745830917665,3.802,1812.0,1811.9,1.10346]
[1745830918160,3.802,1812.0,1811.9,2.75206]
[1745830918361,3.802,1812.0,1811.9,5.95986]
[1745830918966,4.90539,1812.0,1811.9,5.95986]
[1745830919161,6.53549,1812.0,1811.9,5.95986]
[1745830919769,3.802,1812.0,1811.9,5.95986]
[1745830920166,3.802,1812.1,1812.0,1.10339]
[1745830920371,4.90539,1812.1,1812.0,40.8]
[1745830920571,4.90539,1812.1,1812.0,41.90339]
[1745830921060,5.4321,1812.1,1812.0,41.90339]
[1745830921268,3.802,1812.1,1812.0,41.90339]
[1745830921469,3.802,1812.1,1812.0,45.11119]
[1745830923081,4.90533,1812.1,1812.0,45.11119]
[1745830923266,4.90533,1812.1,1812.0,41.90339]
[1745830923575,4.90533,1812.1,1812.0,40.8]
[1745830923879,4.90533,1812.1,1812.0,41.90339]
[1745830924173,6.49253,1812.1,1812.0,41.90339]
[1745830924664,3.802,1812.1,1812.0,50.11119]
[1745830925374,1.10316,1812.4,1812.1,1.1033]
[1745830925375,1.10333,1812.2,1812.1,1.1033]
[1745830925674,4.31113,1812.2,1812.1,1.1033]
[1745830925877,1.10333,1812.1,1812.0,40.8]
[1745830926079,2.73523,1812.1,1812.0,41.90339]
[1745830926281,2.73523,1812.1,1812.0,45.11119]
[1745830926583,2.73523,1812.1,1812.0,1.10339]
[1745830926971,1.6319,1812.1,1812.0,1.10339]
[1745830927276,6.53723,1812.1,1812.0,1.10339]
[1745830927478,5.4339,1812.1,1812.0,1.10339]
[1745830927979,6.53723,1812.1,1812.0,1.10339]
[1745830928577,1.10339,1812.0,1811.9,40.8]
[1745830928779,1.10346,1811.9,1811.8,1.1035]
[1745830929080,2.69476,1811.9,1811.8,1.1035]
[1745830929284,4.38216,1811.9,1811.8,41.9035]
[1745830929577,4.38216,1811.9,1811.8,40.8]
[1745830930077,1.10352,1811.8,1811.7,1.10356]
[1745830930279,2.79092,1811.8,1811.7,1.10356]
[1745830930581,2.79092,1811.8,1811.7,41.90356]
[1745830930768,2.79092,1811.8,1811.7,1.10356]
[1745830931173,6.59292,1811.8,1811.7,1.10356]
[1745830931586,1.10358,1811.7,1811.6,40.8]
[1745830931782,1.10369,1811.6,1811.5,1.10366]
[1745830932084,1.10369,1811.6,1811.2,11.81549]
[1745830932085,1.10374,1811.5,1811.4,1.10371]
[1745830932382,2.75884,1811.5,1811.4,41.90371]
[1745830933184,6.56084,1811.5,1811.4,41.90376]
[1745830933682,1.10379,1811.4,1811.3,1.10378]
[1745830933880,2.75889,1811.4,1811.3,1.10378]
[1745830934076,6.41589,1811.4,1811.3,1.10378]
[1745830934278,10.21789,1811.4,1811.3,1.10378]
[1745830935283,7.459,1811.4,1811.3,2.77098]
[1745830935584,3.802,1811.4,1811.3,2.77098]
[1745830936184,4.31122,1812.0,1811.4,2.75941]
[1745830936393,1.10348,1811.9,1811.8,1.10346]
[1745830937084,5.99363,1812.0,1811.9,1.10346]
[1745830937579,3.657,1812.2,1812.1,1.10333]
[1745830937785,4.76025,1812.3,1812.2,1.10327]
[1745830937985,4.76025,1812.3,1812.2,1.6103]
[1745830938187,1.10328,1812.2,1812.1,1.10333]
[1745830938383,2.83538,1812.2,1812.1,2.71363]
[1745830938990,2.83538,1812.2,1812.1,1.6103]
[1745830939189,6.63738,1812.2,1812.1,2.71363]
[1745830939491,5.5341,1812.2,1812.1,2.71363]
[1745830939687,6.63737,1812.2,1812.1,2.71363]
[1745830939994,5.5341,1812.2,1812.1,2.71363]
[1745830940389,6.63737,1812.2,1812.1,2.71363]
[1745830941294,6.63737,1812.2,1812.1,1.6103]
[1745830941488,6.63737,1812.2,1812.1,2.71363]
[1745830941682,3.802,1812.2,1812.1,5.92143]
[1745830941885,3.802,1812.2,1812.1,6.73133]
[1745830942185,4.76018,1812.4,1812.3,1.10321]
[1745830943291,7.459,1812.4,1812.2,1.6162]
[1745830943589,7.459,1812.4,1812.3,1.10321]
[1745830945191,3.657,1812.4,1812.3,1.10321]
[1745830948089,4.76015,1812.4,1812.3,1.10321]
[1745830948396,6.42825,1812.4,1812.3,1.10321]
[1745830948584,3.657,1812.4,1812.3,1.10321]
[1745830949389,7.459,1812.4,1812.3,1.10321]
[1745830951197,3.657,1812.4,1812.3,1.10321]
[1745830953393,5.4795,1812.6,1812.5,1.10309]
[1745830954095,6.58253,1812.6,1812.5,2.73129]
[1745830954283,8.25263,1812.6,1812.5,2.73129]
[1745830955294,1.10309,1812.5,1812.4,1.10309]
[1745830955485,2.77319,1812.5,1812.4,1.10309]
[1745830955690,2.77319,1812.5,1812.4,2.77499]
[1745830956092,6.57519,1812.5,1812.4,2.77499]
[1745830956296,6.57519,1812.5,1812.4,1.10309]
[1745830957086,3.802,1812.5,1812.4,1.10309]
[1745830957291,3.802,1812.5,1812.4,1.90409]
[1745830958298,8.5487,1812.7,1812.6,1.10303]
[1745830958495,1.6694,1812.8,1812.7,1.10297]
[1745830958798,0.8256,1812.8,1812.7,1.10297]
[1745830959195,4.6276,1812.8,1812.7,1.10297]
[1745830959396,5.73051,1812.8,1812.7,1.10297]
[1745830959694,1.10297,1812.7,1812.6,2.71849]
[1745830959895,2.79407,1812.7,1812.6,1.10299]
[1745830960092,1.6911,1812.7,1812.6,1.10299]
[1745830960293,5.4931,1812.7,1812.6,1.10299]
[1745830960693,5.4931,1812.7,1812.6,2.71849]
[1745830961499,3.802,1812.7,1812.6,5.92629]
[1745830962197,4.4698,1812.9,1812.8,1.10291]
[1745830962603,3.626,1812.9,1812.8,1.10291]
[1745830962800,1.5987,1813.0,1812.8,0.7918]
[1745830962997,1.5987,1813.0,1812.9,2.82425]
[1745830963193,3.802,1813.0,1812.9,2.82425]
[1745830963500,3.802,1813.0,1812.9,3.68925]
[1745830964101,4.0352,1813.1,1813.0,1.10279]
[1745830964302,4.0352,1813.1,1813.0,2.82419]
[1745830964798,3.2078,1813.1,1813.0,2.82419]
[1745830965006,0.7937,1813.2,1813.1,1.10273]
[1745830965302,6.8338,1813.3,1813.2,1.10266]
[1745830965701,8.5436,1813.3,1813.2,1.10266]
[1745830965905,8.5436,1813.3,1813.2,2.74296]
[1745830966102,12.3456,1813.3,1813.2,2.74296]
[1745830966303,13.4482,1813.3,1813.2,1.10266]
[1745830966797,9.1378,1813.3,1813.2,4.31046]
[1745830967001,9.1378,1813.3,1813.2,1.10266]
[1745830967499,10.2404,1813.3,1813.2,1.10266]
[1745830967900,9.1378,1813.3,1813.2,1.10266]
[1745830968791,9.1378,1813.3,1813.2,2.80516]
[1745830969602,7.428,1813.3,1813.2,2.80516]
[1745830969800,7.428,1813.3,1813.2,3.60636]
[1745830970596,9.0169,1813.3,1813.2,2.80516]
[1745830970796,10.1195,1813.3,1813.2,1.10266]